[Event "Titled Tuesday Blitz June 20 Early 2023"]
[White "Eugene, Floryan"]
[Black "Maksimovic, Bojan"]
[WhiteFideId "20694784"]
[BlackFideId "14408120"]
[WhiteElo "2369"]
[BlackElo "2457"]
[Result "0-1"]
[Round "8"]
[TimeControl "180+2"]
[Date "2023.06.20"]
[WhiteClock "0:00:05"]
[BlackClock "0:00:31"]
[Board "47"]

1. d4 {[%clk 0:03:00]}  Nf6 {[%clk 0:02:58]} 2. c4 {[%clk 0:03:01]}  c5 {[%clk 0:02:45]} 3. d5 {[%clk 0:02:59]}  b5 {[%clk 0:02:44]} 4. cxb5 {[%clk 0:03:00]}  a6 {[%clk 0:02:44]} 5. bxa6 {[%clk 0:03:00]}  g6 {[%clk 0:02:44]} 6. Nc3 {[%clk 0:02:58]}  Bg7 {[%clk 0:02:45]} 7. e4 {[%clk 0:02:57]}  O-O {[%clk 0:02:45]} 8. Nf3 {[%clk 0:02:56]}  Qa5 {[%clk 0:02:44]} 9. Bd2 {[%clk 0:02:46]}  Bxa6 {[%clk 0:02:43]} 10. Bxa6 {[%clk 0:02:41]}  Qxa6 {[%clk 0:02:44]} 11. Qe2 {[%clk 0:02:40]}  d6 {[%clk 0:02:42]} 12. Qxa6 {[%clk 0:02:37]}  Nxa6 {[%clk 0:02:41]} 13. O-O {[%clk 0:02:34]}  Rfb8 {[%clk 0:02:41]} 14. Rfb1 {[%clk 0:02:23]}  Nb4 {[%clk 0:02:05]} 15. Ne1 {[%clk 0:02:19]}  Nd7 {[%clk 0:01:55]} 16. a3 {[%clk 0:02:13]}  Na6 {[%clk 0:01:55]} 17. Nc2 {[%clk 0:02:09]}  c4 {[%clk 0:01:46]} 18. Ne3 {[%clk 0:02:06]}  Nac5 {[%clk 0:01:37]} 19. Nxc4 {[%clk 0:02:04]}  Nb3 {[%clk 0:01:37]} 20. Be1 {[%clk 0:01:38]}  Rc8 {[%clk 0:01:25]} 21. Ne3 {[%clk 0:01:33]}  Nxa1 {[%clk 0:01:16]} 22. Rxa1 {[%clk 0:01:34]}  Nc5 {[%clk 0:01:17]} 23. f3 {[%clk 0:01:21]}  Nd3 {[%clk 0:01:15]} 24. Ned1 {[%clk 0:01:18]}  Nxb2 {[%clk 0:01:11]} 25. Nxb2 {[%clk 0:01:15]}  Bxc3 {[%clk 0:01:11]} 26. Bxc3 {[%clk 0:01:14]}  Rxc3 {[%clk 0:01:12]} 27. a4 {[%clk 0:01:12]}  Rb3 {[%clk 0:01:12]} 28. Nd1 {[%clk 0:01:06]}  f5 {[%clk 0:01:04]} 29. Kf2 {[%clk 0:01:04]}  fxe4 {[%clk 0:01:03]} 30. fxe4 {[%clk 0:01:02]}  Rf8+ {[%clk 0:01:03]} 31. Ke2 {[%clk 0:01:01]}  Rf4 {[%clk 0:01:04]} 32. a5 {[%clk 0:00:54]}  Rxe4+ {[%clk 0:01:04]} 33. Kd2 {[%clk 0:00:53]}  Rc4 {[%clk 0:00:50]} 34. a6 {[%clk 0:00:51]}  Rc8 {[%clk 0:00:48]} 35. Ne3 {[%clk 0:00:28]}  Rb6 {[%clk 0:00:41]} 36. Nc4 {[%clk 0:00:21]}  Rxc4 {[%clk 0:00:29]} 37. a7 {[%clk 0:00:21]}  Rb2+ {[%clk 0:00:30]} 38. Kd3 {[%clk 0:00:19]}  Rc8 {[%clk 0:00:31]} 39. a8=Q {[%clk 0:00:19]}  Rxa8 {[%clk 0:00:31]} 40. Rxa8+ {[%clk 0:00:20]}  Kg7 {[%clk 0:00:31]} 41. Re8 {[%clk 0:00:19]}  Kf7 {[%clk 0:00:30]} 42. Rh8 {[%clk 0:00:19]}  h5 {[%clk 0:00:31]} 43. g4 {[%clk 0:00:17]}  hxg4 {[%clk 0:00:30]} 44. Rh4 {[%clk 0:00:17]}  Kf6 {[%clk 0:00:31]} 45. Ke4 {[%clk 0:00:15]}  Rb4+ {[%clk 0:00:31]} 46. Ke3 {[%clk 0:00:15]}  Ke5 {[%clk 0:00:29]} 47. Rh7 {[%clk 0:00:15]}  Rb3+ {[%clk 0:00:29]} 48. Kd2 {[%clk 0:00:15]}  Rb7 {[%clk 0:00:29]} 49. Rg7 {[%clk 0:00:14]}  Kf6 {[%clk 0:00:29]} 50. Rh7 {[%clk 0:00:14]}  Rb5 {[%clk 0:00:30]} 51. Ke3 {[%clk 0:00:14]}  Rxd5 {[%clk 0:00:30]} 52. Kf4 {[%clk 0:00:14]}  Rd4+ {[%clk 0:00:30]} 53. Ke3 {[%clk 0:00:14]}  Ra4 {[%clk 0:00:31]} 54. Rh8 {[%clk 0:00:14]}  d5 {[%clk 0:00:31]} 55. Rd8 {[%clk 0:00:14]}  Ke5 {[%clk 0:00:32]} 56. Rg8 {[%clk 0:00:14]}  Ra3+ {[%clk 0:00:32]} 57. Kf2 {[%clk 0:00:14]}  Kf5 {[%clk 0:00:33]} 58. Re8 {[%clk 0:00:13]}  e5 {[%clk 0:00:33]} 59. Rf8+ {[%clk 0:00:13]}  Ke4 {[%clk 0:00:33]} 60. Rg8 {[%clk 0:00:14]}  g5 {[%clk 0:00:30]} 61. Rxg5 {[%clk 0:00:14]}  Kf4 {[%clk 0:00:31]} 62. Rg8 {[%clk 0:00:14]}  Ra2+ {[%clk 0:00:31]} 63. Ke1 {[%clk 0:00:14]}  d4 {[%clk 0:00:32]} 64. Rf8+ {[%clk 0:00:13]}  Ke3 {[%clk 0:00:32]} 65. Kf1 {[%clk 0:00:14]}  e4 {[%clk 0:00:32]} 66. h3 {[%clk 0:00:11]}  gxh3 {[%clk 0:00:31]} 67. Kg1 {[%clk 0:00:11]}  h2+ {[%clk 0:00:31]} 68. Kh1 {[%clk 0:00:12]}  Ra1+ {[%clk 0:00:30]} 69. Kxh2 {[%clk 0:00:12]}  d3 {[%clk 0:00:30]} 70. Kg2 {[%clk 0:00:10]}  d2 {[%clk 0:00:31]} 71. Rh8 {[%clk 0:00:08]}  d1=Q {[%clk 0:00:31]} 72. Rh3+ {[%clk 0:00:09]}  Qf3+ {[%clk 0:00:31]} 73. Rxf3+ {[%clk 0:00:05]}  exf3+ {[%clk 0:00:31]} 0-1


[Site "https://www.chess.com"]

[Event "Titled Tuesday Blitz June 20 Early 2023"]
[White "Shukhman, Anna"]
[Black "Sattarov, Bobir"]
[WhiteFideId "54180058"]
[BlackFideId "14203081"]
[WhiteElo "2235"]
[BlackElo "2351"]
[Result "0-1"]
[Round "8"]
[TimeControl "180+2"]
[Date "2023.06.20"]
[WhiteClock "0:00:18"]
[BlackClock "0:01:04"]
[Board "49"]

1. e4 {[%clk 0:03:00]}  e5 {[%clk 0:03:00]} 2. Nf3 {[%clk 0:03:00]}  Nc6 {[%clk 0:03:00]} 3. Bc4 {[%clk 0:03:00]}  Nf6 {[%clk 0:03:00]} 4. Ng5 {[%clk 0:03:00]}  d5 {[%clk 0:02:59]} 5. exd5 {[%clk 0:03:00]}  Na5 {[%clk 0:03:00]} 6. Bb5+ {[%clk 0:03:01]}  c6 {[%clk 0:03:00]} 7. dxc6 {[%clk 0:03:01]}  bxc6 {[%clk 0:03:01]} 8. Bd3 {[%clk 0:03:02]}  Nd5 {[%clk 0:02:58]} 9. h4 {[%clk 0:02:59]}  Nf4 {[%clk 0:02:50]} 10. Bf1 {[%clk 0:02:58]}  h6 {[%clk 0:02:45]} 11. Ne4 {[%clk 0:02:55]}  f5 {[%clk 0:02:39]} 12. Ng3 {[%clk 0:02:55]}  Bc5 {[%clk 0:02:38]} 13. d4 {[%clk 0:02:54]}  Bxd4 {[%clk 0:02:30]} 14. Bxf4 {[%clk 0:02:51]}  Bxf2+ {[%clk 0:02:28]} 15. Ke2 {[%clk 0:02:50]}  Ba6+ {[%clk 0:02:28]} 16. Kxf2 {[%clk 0:02:50]}  Qxd1 {[%clk 0:02:26]} 17. Bxa6 {[%clk 0:02:05]}  Qd4+ {[%clk 0:02:15]} 18. Be3 {[%clk 0:02:03]}  Qxb2 {[%clk 0:02:15]} 19. Nd2 {[%clk 0:01:58]}  f4 {[%clk 0:02:13]} 20. Nge4 {[%clk 0:01:46]}  fxe3+ {[%clk 0:02:11]} 21. Kxe3 {[%clk 0:01:47]}  O-O {[%clk 0:02:09]} 22. Rab1 {[%clk 0:01:43]}  Qd4+ {[%clk 0:02:08]} 23. Ke2 {[%clk 0:01:43]}  Rab8 {[%clk 0:02:02]} 24. Rbd1 {[%clk 0:01:38]}  c5 {[%clk 0:01:54]} 25. c3 {[%clk 0:01:29]}  Qa4 {[%clk 0:01:48]} 26. Bd3 {[%clk 0:01:07]}  c4 {[%clk 0:01:45]} 27. Bb1 {[%clk 0:01:06]}  Rb2 {[%clk 0:01:44]} 28. Rhf1 {[%clk 0:01:03]}  Rxf1 {[%clk 0:01:41]} 29. Rxf1 {[%clk 0:01:03]}  Qd7 {[%clk 0:01:26]} 30. Ke3 {[%clk 0:00:44]}  a6 {[%clk 0:01:07]} 31. Nc5 {[%clk 0:00:18]}  Qxd2+ {[%clk 0:01:04]} 0-1


[Site "https://www.chess.com"]

[Event "Titled Tuesday Blitz June 20 Early 2023"]
[White "Fernandez Guillen, Ernesto J."]
[Black "Ljukin, Sergei"]
[WhiteFideId "3512428"]
[BlackFideId "14102200"]
[WhiteElo "2434"]
[BlackElo "2312"]
[Result "1-0"]
[Round "8"]
[TimeControl "180+2"]
[Date "2023.06.20"]
[WhiteClock "0:00:41"]
[BlackClock "0:00:00"]
[Board "51"]

1. e4 {[%clk 0:03:00]}  e6 {[%clk 0:02:58]} 2. Nf3 {[%clk 0:02:58]}  d5 {[%clk 0:02:58]} 3. Nc3 {[%clk 0:02:59]}  Nf6 {[%clk 0:02:58]} 4. e5 {[%clk 0:02:57]}  Nfd7 {[%clk 0:02:59]} 5. d4 {[%clk 0:02:58]}  c5 {[%clk 0:02:59]} 6. Ne2 {[%clk 0:02:59]}  cxd4 {[%clk 0:02:58]} 7. Nexd4 {[%clk 0:03:00]}  Nc6 {[%clk 0:02:58]} 8. Nxc6 {[%clk 0:03:01]}  bxc6 {[%clk 0:02:58]} 9. Bd3 {[%clk 0:03:01]}  f6 {[%clk 0:02:54]} 10. Bf4 {[%clk 0:02:54]}  g5 {[%clk 0:02:37]} 11. Nxg5 {[%clk 0:02:41]}  Nxe5 {[%clk 0:02:30]} 12. Qh5+ {[%clk 0:02:38]}  Ke7 {[%clk 0:02:24]} 13. Bxe5 {[%clk 0:02:29]}  fxe5 {[%clk 0:02:24]} 14. Qf7+ {[%clk 0:02:26]}  Kd6 {[%clk 0:02:24]} 15. f4 {[%clk 0:02:03]}  e4 {[%clk 0:02:14]} 16. Bxe4 {[%clk 0:01:54]}  Be7 {[%clk 0:01:50]} 17. Qg7 {[%clk 0:01:53]}  Bxg5 {[%clk 0:01:47]} 18. Qe5+ {[%clk 0:01:50]}  Kd7 {[%clk 0:01:46]} 19. fxg5 {[%clk 0:01:50]}  Rg8 {[%clk 0:01:00]} 20. h4 {[%clk 0:01:49]}  Qe7 {[%clk 0:00:46]} 21. O-O-O {[%clk 0:01:46]}  Ba6 {[%clk 0:00:38]} 22. Rhe1 {[%clk 0:01:42]}  Rae8 {[%clk 0:00:19]} 23. Bf3 {[%clk 0:01:17]}  Qd6 {[%clk 0:00:15]} 24. Qd4 {[%clk 0:01:17]}  c5 {[%clk 0:00:12]} 25. Qa4+ {[%clk 0:01:16]}  Qc6 {[%clk 0:00:11]} 26. Qg4 {[%clk 0:00:48]}  Kc7 {[%clk 0:00:08]} 27. Qh5 {[%clk 0:00:44]}  Rg7 {[%clk 0:00:06]} 28. Qh6 {[%clk 0:00:44]}  Rge7 {[%clk 0:00:06]} 29. Qf6 {[%clk 0:00:40]}  Kb8 {[%clk 0:00:00]} 30. Bh5 {[%clk 0:00:41]} 1-0


[Site "https://www.chess.com"]

[Event "Titled Tuesday Blitz June 20 Early 2023"]
[White "Srihari L R"]
[Black "Zaitsev, Alexander"]
[WhiteFideId "46617116"]
[BlackFideId "4164490"]
[WhiteElo "2334"]
[BlackElo "2373"]
[Result "1-0"]
[Round "8"]
[TimeControl "180+2"]
[Date "2023.06.20"]
[WhiteClock "0:01:21"]
[BlackClock "0:00:00"]
[Board "53"]

1. d4 {[%clk 0:03:00]}  Nf6 {[%clk 0:02:59]} 2. Bg5 {[%clk 0:03:00]}  d5 {[%clk 0:02:58]} 3. Nd2 {[%clk 0:02:59]}  e6 {[%clk 0:02:53]} 4. e3 {[%clk 0:02:59]}  Be7 {[%clk 0:02:52]} 5. Bd3 {[%clk 0:02:58]}  c5 {[%clk 0:02:47]} 6. c3 {[%clk 0:02:58]}  b6 {[%clk 0:02:47]} 7. f4 {[%clk 0:02:56]}  O-O {[%clk 0:02:42]} 8. Nh3 {[%clk 0:02:54]}  Ba6 {[%clk 0:02:40]} 9. Bxa6 {[%clk 0:02:51]}  Nxa6 {[%clk 0:02:40]} 10. O-O {[%clk 0:02:51]}  Nb8 {[%clk 0:02:33]} 11. Nf2 {[%clk 0:02:48]}  Nc6 {[%clk 0:02:33]} 12. Qf3 {[%clk 0:02:47]}  Ne8 {[%clk 0:02:07]} 13. Bxe7 {[%clk 0:02:44]}  Nxe7 {[%clk 0:01:41]} 14. Nd3 {[%clk 0:02:40]}  Nd6 {[%clk 0:01:34]} 15. dxc5 {[%clk 0:02:39]}  bxc5 {[%clk 0:01:32]} 16. Nxc5 {[%clk 0:02:40]}  Rb8 {[%clk 0:01:27]} 17. Nd3 {[%clk 0:02:37]}  Nc4 {[%clk 0:01:22]} 18. Nb3 {[%clk 0:02:33]}  a5 {[%clk 0:01:15]} 19. Qe2 {[%clk 0:02:29]}  Qb6 {[%clk 0:00:58]} 20. Nd4 {[%clk 0:02:24]}  Nf5 {[%clk 0:00:47]} 21. Nxf5 {[%clk 0:01:44]}  exf5 {[%clk 0:00:47]} 22. Rfe1 {[%clk 0:01:43]}  Rfe8 {[%clk 0:00:46]} 23. b3 {[%clk 0:01:37]}  Nxe3 {[%clk 0:00:42]} 24. Qf2 {[%clk 0:01:35]}  d4 {[%clk 0:00:38]} 25. Ne5 {[%clk 0:01:24]}  f6 {[%clk 0:00:32]} 26. Nd7 {[%clk 0:01:23]}  Qd6 {[%clk 0:00:08]} 27. Nxb8 {[%clk 0:01:22]}  Rxb8 {[%clk 0:00:09]} 28. cxd4 {[%clk 0:01:22]}  Nd5 {[%clk 0:00:00]} 29. g3 {[%clk 0:01:21]} 1-0


[Site "https://www.chess.com"]

[Event "Titled Tuesday Blitz June 20 Early 2023"]
[White "Begunov, Konstantin"]
[Black "Fus, Jakub"]
[WhiteFideId "4118510"]
[BlackFideId "1193023"]
[WhiteElo "1993"]
[BlackElo "2335"]
[Result "0-1"]
[Round "8"]
[TimeControl "180+2"]
[Date "2023.06.20"]
[WhiteClock "0:00:00"]
[BlackClock "0:00:09"]
[Board "55"]

1. d4 {[%clk 0:02:54]}  d5 {[%clk 0:02:56]} 2. c4 {[%clk 0:02:54]}  e6 {[%clk 0:02:56]} 3. Nc3 {[%clk 0:02:54]}  Nf6 {[%clk 0:02:57]} 4. cxd5 {[%clk 0:02:54]}  exd5 {[%clk 0:02:58]} 5. Bg5 {[%clk 0:02:54]}  c6 {[%clk 0:02:58]} 6. e3 {[%clk 0:02:54]}  Bd6 {[%clk 0:02:58]} 7. Qc2 {[%clk 0:02:53]}  O-O {[%clk 0:02:57]} 8. Bd3 {[%clk 0:02:52]}  h6 {[%clk 0:02:58]} 9. Bh4 {[%clk 0:02:52]}  Re8 {[%clk 0:02:58]} 10. Nf3 {[%clk 0:02:52]}  Be6 {[%clk 0:02:56]} 11. O-O {[%clk 0:02:52]}  Nbd7 {[%clk 0:02:56]} 12. Rab1 {[%clk 0:02:51]}  a5 {[%clk 0:02:56]} 13. a3 {[%clk 0:02:48]}  Qb8 {[%clk 0:02:45]} 14. Rfe1 {[%clk 0:02:46]}  Bg4 {[%clk 0:02:39]} 15. Bg3 {[%clk 0:02:46]}  Bxg3 {[%clk 0:02:34]} 16. hxg3 {[%clk 0:02:45]}  Qd6 {[%clk 0:02:33]} 17. Rbc1 {[%clk 0:02:13]}  Re7 {[%clk 0:02:17]} 18. Na4 {[%clk 0:02:12]}  g6 {[%clk 0:01:39]} 19. Nc5 {[%clk 0:02:07]}  Bxf3 {[%clk 0:01:34]} 20. gxf3 {[%clk 0:01:59]}  Nxc5 {[%clk 0:01:33]} 21. Qxc5 {[%clk 0:01:58]}  Qxc5 {[%clk 0:01:31]} 22. Rxc5 {[%clk 0:01:55]}  Nd7 {[%clk 0:01:05]} 23. Rcc1 {[%clk 0:01:49]}  Nb6 {[%clk 0:01:05]} 24. Kg2 {[%clk 0:01:39]}  a4 {[%clk 0:00:57]} 25. Rh1 {[%clk 0:01:23]}  Kg7 {[%clk 0:00:56]} 26. Rh4 {[%clk 0:01:23]}  h5 {[%clk 0:00:52]} 27. g4 {[%clk 0:01:23]}  hxg4 {[%clk 0:00:51]} 28. Rxg4 {[%clk 0:01:23]}  Nc8 {[%clk 0:00:47]} 29. Rh1 {[%clk 0:01:20]}  Nd6 {[%clk 0:00:45]} 30. Rgh4 {[%clk 0:01:18]}  Rc8 {[%clk 0:00:39]} 31. Rh7+ {[%clk 0:01:18]}  Kf6 {[%clk 0:00:39]} 32. R1h4 {[%clk 0:01:18]}  Ke6 {[%clk 0:00:27]} 33. Rg7 {[%clk 0:01:00]}  Nc4 {[%clk 0:00:25]} 34. Bxc4 {[%clk 0:00:57]}  dxc4 {[%clk 0:00:26]} 35. Rgh7 {[%clk 0:00:36]}  Rd8 {[%clk 0:00:23]} 36. Re4+ {[%clk 0:00:33]}  Kd7 {[%clk 0:00:21]} 37. Rf4 {[%clk 0:00:29]}  Ke6 {[%clk 0:00:21]} 38. Re4+ {[%clk 0:00:25]}  Kd6 {[%clk 0:00:20]} 39. Rf4 {[%clk 0:00:22]}  f5 {[%clk 0:00:18]} 40. Rh1 {[%clk 0:00:18]}  Ra8 {[%clk 0:00:16]} 41. Rfh4 {[%clk 0:00:16]}  Ra5 {[%clk 0:00:14]} 42. Rh6 {[%clk 0:00:15]}  Rg7 {[%clk 0:00:14]} 43. Rh7 {[%clk 0:00:15]}  Rxh7 {[%clk 0:00:14]} 44. Rxh7 {[%clk 0:00:16]}  Rb5 {[%clk 0:00:14]} 45. Rg7 {[%clk 0:00:16]}  Rxb2 {[%clk 0:00:15]} 46. Rxg6+ {[%clk 0:00:17]}  Ke7 {[%clk 0:00:14]} 47. e4 {[%clk 0:00:16]}  c3 {[%clk 0:00:13]} 48. d5 {[%clk 0:00:06]}  c2 {[%clk 0:00:13]} 49. dxc6 {[%clk 0:00:03]}  c1=Q {[%clk 0:00:13]} 50. cxb7 {[%clk 0:00:03]}  Rb1 {[%clk 0:00:10]} 51. Kg3 {[%clk 0:00:00]}  Qg1+ {[%clk 0:00:09]} 0-1


[Site "https://www.chess.com"]

[Event "Titled Tuesday Blitz June 20 Early 2023"]
[White "Bazilius, Augustinas"]
[Black "Ajay Karthikeyan"]
[WhiteFideId "12832251"]
[BlackFideId "35011685"]
[WhiteElo "1980"]
[BlackElo "2321"]
[Result "0-1"]
[Round "8"]
[TimeControl "180+2"]
[Date "2023.06.20"]
[WhiteClock "0:00:01"]
[BlackClock "0:01:23"]
[Board "56"]

1. d4 {[%clk 0:03:00]}  Nf6 {[%clk 0:02:58]} 2. Bg5 {[%clk 0:03:00]}  Ne4 {[%clk 0:02:56]} 3. Bf4 {[%clk 0:03:00]}  g6 {[%clk 0:02:56]} 4. f3 {[%clk 0:02:56]}  Nf6 {[%clk 0:02:56]} 5. e4 {[%clk 0:02:56]}  Bg7 {[%clk 0:02:55]} 6. Bd3 {[%clk 0:02:53]}  c5 {[%clk 0:02:54]} 7. c3 {[%clk 0:02:50]}  cxd4 {[%clk 0:02:45]} 8. cxd4 {[%clk 0:02:51]}  O-O {[%clk 0:02:44]} 9. h4 {[%clk 0:02:48]}  Nh5 {[%clk 0:02:43]} 10. Be3 {[%clk 0:02:46]}  Nc6 {[%clk 0:02:44]} 11. Ne2 {[%clk 0:02:46]}  Qb6 {[%clk 0:02:44]} 12. Nbc3 {[%clk 0:02:28]}  e6 {[%clk 0:02:32]} 13. g4 {[%clk 0:02:22]}  Nf6 {[%clk 0:02:23]} 14. h5 {[%clk 0:02:20]}  e5 {[%clk 0:02:15]} 15. Bc2 {[%clk 0:01:52]}  exd4 {[%clk 0:02:08]} 16. Nxd4 {[%clk 0:01:50]}  Nxg4 {[%clk 0:02:03]} 17. Nd5 {[%clk 0:01:28]}  Nxe3 {[%clk 0:02:00]} 18. Nxb6 {[%clk 0:01:25]}  Nxd4 {[%clk 0:01:59]} 19. Qd2 {[%clk 0:01:04]}  Nexc2+ {[%clk 0:01:54]} 20. Kf1 {[%clk 0:01:00]}  axb6 {[%clk 0:01:52]} 21. Rc1 {[%clk 0:00:54]}  Rxa2 {[%clk 0:01:53]} 22. Qc3 {[%clk 0:00:34]}  d5 {[%clk 0:01:38]} 23. Rxc2 {[%clk 0:00:30]}  Nxc2 {[%clk 0:01:36]} 24. Qxc2 {[%clk 0:00:31]}  Rxb2 {[%clk 0:01:33]} 25. Qd3 {[%clk 0:00:21]}  dxe4 {[%clk 0:01:32]} 26. fxe4 {[%clk 0:00:22]}  Be6 {[%clk 0:01:28]} 27. hxg6 {[%clk 0:00:16]}  fxg6+ {[%clk 0:01:28]} 28. Ke1 {[%clk 0:00:16]}  Ra8 {[%clk 0:01:23]} 29. Qd1 {[%clk 0:00:07]}  Rg2 {[%clk 0:01:22]} 30. Kf1 {[%clk 0:00:01]}  Rga2 {[%clk 0:01:23]} 0-1


[Site "https://www.chess.com"]

[Event "Titled Tuesday Blitz June 20 Early 2023"]
[White "Xu, Yi"]
[Black "Garcia Blanco, Omar"]
[WhiteFideId "8605564"]
[BlackFideId "2287153"]
[WhiteElo "2460"]
[BlackElo "2356"]
[Result "1-0"]
[Round "8"]
[TimeControl "180+2"]
[Date "2023.06.20"]
[WhiteClock "0:00:36"]
[BlackClock "0:00:41"]
[Board "59"]

1. d4 {[%clk 0:03:00]}  Nf6 {[%clk 0:02:59]} 2. c4 {[%clk 0:03:01]}  e6 {[%clk 0:02:59]} 3. Nf3 {[%clk 0:03:01]}  d5 {[%clk 0:03:00]} 4. g3 {[%clk 0:03:01]}  Be7 {[%clk 0:03:00]} 5. Bg2 {[%clk 0:03:01]}  O-O {[%clk 0:03:01]} 6. O-O {[%clk 0:03:02]}  c6 {[%clk 0:03:02]} 7. Nbd2 {[%clk 0:02:56]}  b6 {[%clk 0:03:02]} 8. Qc2 {[%clk 0:02:55]}  Bb7 {[%clk 0:03:01]} 9. e4 {[%clk 0:02:52]}  Na6 {[%clk 0:03:02]} 10. h4 {[%clk 0:02:17]}  h6 {[%clk 0:02:45]} 11. Rd1 {[%clk 0:02:01]}  Rc8 {[%clk 0:02:28]} 12. a3 {[%clk 0:01:52]}  dxc4 {[%clk 0:02:20]} 13. Nxc4 {[%clk 0:01:51]}  c5 {[%clk 0:02:21]} 14. d5 {[%clk 0:01:32]}  exd5 {[%clk 0:01:33]} 15. exd5 {[%clk 0:01:32]}  b5 {[%clk 0:01:33]} 16. Ne3 {[%clk 0:01:20]}  c4 {[%clk 0:01:34]} 17. d6 {[%clk 0:01:11]}  Bxd6 {[%clk 0:01:34]} 18. Nf5 {[%clk 0:01:11]}  Ne8 {[%clk 0:01:28]} 19. Bf4 {[%clk 0:01:07]}  Rc6 {[%clk 0:01:25]} 20. Qc3 {[%clk 0:00:52]}  Qd7 {[%clk 0:00:47]} 21. Bxd6 {[%clk 0:00:37]}  Qxf5 {[%clk 0:00:46]} 22. Bxf8 {[%clk 0:00:36]}  Kxf8 {[%clk 0:00:41]} 23. Nd4 {[%clk 0:00:36]} 1-0


[Site "https://www.chess.com"]

[Event "Titled Tuesday Blitz June 20 Early 2023"]
[White "Pinheiro, Iung Alicio de O."]
[Black "Goltsev, Dmitry"]
[WhiteFideId "2104350"]
[BlackFideId "24176710"]
[WhiteElo "2283"]
[BlackElo "2356"]
[Result "1-0"]
[Round "8"]
[TimeControl "180+2"]
[Date "2023.06.20"]
[WhiteClock "0:00:10"]
[BlackClock "0:00:02"]
[Board "61"]

1. e4 {[%clk 0:02:56]}  e6 {[%clk 0:02:59]} 2. d4 {[%clk 0:02:56]}  d5 {[%clk 0:03:00]} 3. e5 {[%clk 0:02:56]}  c5 {[%clk 0:03:00]} 4. c3 {[%clk 0:02:57]}  Nc6 {[%clk 0:03:00]} 5. Nf3 {[%clk 0:02:58]}  cxd4 {[%clk 0:03:01]} 6. Bd3 {[%clk 0:02:58]}  Nge7 {[%clk 0:03:02]} 7. O-O {[%clk 0:02:58]}  Nf5 {[%clk 0:03:02]} 8. Re1 {[%clk 0:02:43]}  dxc3 {[%clk 0:02:57]} 9. Nxc3 {[%clk 0:02:43]}  Nh4 {[%clk 0:02:43]} 10. Ng5 {[%clk 0:02:35]}  h6 {[%clk 0:02:39]} 11. Qh5 {[%clk 0:02:29]}  g6 {[%clk 0:01:27]} 12. Qxh4 {[%clk 0:02:11]}  Be7 {[%clk 0:01:22]} 13. Nxf7 {[%clk 0:01:51]}  Bxh4 {[%clk 0:01:10]} 14. Nxd8 {[%clk 0:01:50]}  Bxd8 {[%clk 0:01:10]} 15. Bxg6+ {[%clk 0:01:50]}  Ke7 {[%clk 0:01:08]} 16. b3 {[%clk 0:01:27]}  Ba5 {[%clk 0:00:51]} 17. Ba3+ {[%clk 0:01:17]}  Kd8 {[%clk 0:00:45]} 18. Rac1 {[%clk 0:01:17]}  d4 {[%clk 0:00:42]} 19. Red1 {[%clk 0:01:17]}  Rg8 {[%clk 0:00:39]} 20. Be4 {[%clk 0:01:11]}  Nxe5 {[%clk 0:00:28]} 21. Rxd4+ {[%clk 0:01:08]}  Ke8 {[%clk 0:00:29]} 22. Nb5 {[%clk 0:01:03]}  Nf7 {[%clk 0:00:06]} 23. Nc7+ {[%clk 0:00:53]}  Bxc7 {[%clk 0:00:06]} 24. Rxc7 {[%clk 0:00:54]}  Rg5 {[%clk 0:00:03]} 25. h4 {[%clk 0:00:34]}  Re5 {[%clk 0:00:02]} 26. Re7+ {[%clk 0:00:24]}  Kf8 {[%clk 0:00:02]} 27. Rxe6+ {[%clk 0:00:23]}  Kg7 {[%clk 0:00:03]} 28. Rxe5 {[%clk 0:00:19]}  Nxe5 {[%clk 0:00:04]} 29. Bb2 {[%clk 0:00:20]}  Nc6 {[%clk 0:00:03]} 30. Rd8+ {[%clk 0:00:17]}  Kf7 {[%clk 0:00:03]} 31. Rh8 {[%clk 0:00:17]}  Ne7 {[%clk 0:00:02]} 32. Rh7+ {[%clk 0:00:13]}  Ke6 {[%clk 0:00:02]} 33. g4 {[%clk 0:00:13]}  Kd7 {[%clk 0:00:03]} 34. Bf6 {[%clk 0:00:12]}  Ke6 {[%clk 0:00:03]} 35. Bxe7 {[%clk 0:00:12]}  Bd7 {[%clk 0:00:04]} 36. Bf5+ {[%clk 0:00:12]}  Ke5 {[%clk 0:00:04]} 37. Bxd7 {[%clk 0:00:12]}  Kf4 {[%clk 0:00:05]} 38. Kg2 {[%clk 0:00:12]}  a5 {[%clk 0:00:05]} 39. Bd6+ {[%clk 0:00:12]}  Ke4 {[%clk 0:00:04]} 40. Re7+ {[%clk 0:00:11]}  Kd5 {[%clk 0:00:05]} 41. Bg3 {[%clk 0:00:12]}  a4 {[%clk 0:00:06]} 42. Bf5 {[%clk 0:00:12]}  axb3 {[%clk 0:00:06]} 43. axb3 {[%clk 0:00:13]}  Ra3 {[%clk 0:00:06]} 44. Rxb7 {[%clk 0:00:13]}  h5 {[%clk 0:00:05]} 45. gxh5 {[%clk 0:00:12]}  Kc6 {[%clk 0:00:06]} 46. Rc7+ {[%clk 0:00:11]}  Kb6 {[%clk 0:00:06]} 47. h6 {[%clk 0:00:12]}  Ra8 {[%clk 0:00:04]} 48. h7 {[%clk 0:00:12]}  Kb5 {[%clk 0:00:04]} 49. Rg7 {[%clk 0:00:12]}  Kb4 {[%clk 0:00:04]} 50. Rg8 {[%clk 0:00:12]}  Ra2 {[%clk 0:00:04]} 51. h8=Q {[%clk 0:00:12]}  Ka3 {[%clk 0:00:03]} 52. Bd6+ {[%clk 0:00:11]}  Kxb3 {[%clk 0:00:02]} 53. Be6+ {[%clk 0:00:11]}  Ka4 {[%clk 0:00:01]} 54. Ra8+ {[%clk 0:00:11]}  Kb5 {[%clk 0:00:02]} 55. Qe8+ {[%clk 0:00:10]}  Kb6 {[%clk 0:00:02]} 56. Rb8+ {[%clk 0:00:09]}  Ka5 {[%clk 0:00:02]} 57. Qb5# {[%clk 0:00:10]} 1-0


[Site "https://www.chess.com"]